[Event "44th Chess Olympiad Open 2022"]
[Site "Chennai"]
[Date "2022.08.03"]
[Round "6.13"]
[White "Postny, Evgeny"]
[Black "Bersamina, Paulo"]
[Result "1-0"]
[WhiteElo "2564"]
[BlackElo "2429"]
[Annotator "TA"]
[PlyCount "81"]
[EventDate "2022.??.??"]
[TimeControl "60"]

{[%evp 13,81,30,59,19,22,19,22,35,19,24,23,25,34,31,64,53,68,69,65,61,102,70,
124,102,82,98,102,104,124,125,165,166,294,292,279,279,609,521,609,589,2671,904,
885,879,845,835,815,820,710,499,488,452,427,425,457,477,903,904,1258,1266,1399,
1372,2155,2141,2005,2012,1370,1368,5277,2081]} 1. d4 {[%emt 0:00:04]} Nf6 {
[%emt 0:00:07]} 2. c4 {[%emt 0:00:06]} c5 {[%emt 0:00:04]} 3. d5 {[%emt 0:00:
00]} e6 {[%emt 0:00:06]} 4. Nc3 {[%emt 0:00:12]} exd5 {[%emt 0:00:10]} 5. cxd5
{[%emt 0:00:06]} d6 {[%emt 0:00:06]} 6. Nf3 {[%emt 0:00:28]} g6 {[%emt 0:00:06]
} 7. Bf4 {[%emt 0:02:02]} Bg7 {[%emt 0:00:42]} 8. e3 {[%emt 0:01:12] A61:
Modern Benoni: Nf3 without early e4.} O-O {[%emt 0:00:30]} 9. h3 {[%emt 0:00:
00]} Na6 {[%emt 0:04:18]} 10. Bxa6 {[%emt 0:00:42] The position is equal.} bxa6
{[%emt 0:00:11]} 11. Rc1 {[%emt 0:00:21]} Nh5 {[%emt 0:14:37]} 12. Bh2 {
[%emt 0:00:25]} f5 {[%emt 0:03:49] Against Ne4} 13. O-O {[%emt 0:06:08]} f4 {
[%emt 0:02:56]} 14. exf4 {[%emt 0:18:08]} Nxf4 {[%emt 0:00:32]} 15. Re1 {
[%emt 0:00:44] [#]} Rb8 $146 {[%emt 0:07:43]} ({Predecessor:} 15... g5 16. Bxf4
Rxf4 17. Re4 Rf7 18. b4 Bf5 19. Rc4 cxb4 20. Rxb4 Rc8 21. Ne4 Bxe4 22. Rxe4 {
1-0 (34) Cori,J (2652)-Cofre Archibold,N (2299) Villahermosa 2021}) 16. b3 $1 {
[%emt 0:00:47]} Rb4 {[%emt 0:00:57][%cal Yf4h3]} 17. Ne4 {[%emt 0:04:23]} h6 {
[%emt 0:17:47]} ({Black should play} 17... Bh6 $14) 18. Rc4 {[%emt 0:16:28]} a5
{[%emt 0:20:11]} 19. a3 {[%emt 0:08:03]} Rxc4 {[%emt 0:04:17]} 20. bxc4 {
[%emt 0:00:05]} g5 {[%emt 0:00:20] [#]} 21. Nfd2 $1 {[%emt 0:08:54]} Bd4 {
[%emt 0:07:23]} 22. Bxf4 {[%emt 0:03:55]} Rxf4 {[%emt 0:00:19]} (22... gxf4
$142 23. Qh5 Kg7) 23. Qh5 $18 {[%emt 0:00:19]} Kg7 {[%emt 0:02:11] Inhibits
Qg6+.} 24. Nf3 {[%emt 0:01:17][%cal Re4g5] Black must now prevent Nexg5! Pair
of Knights!} Bf5 $2 {[%emt 0:07:28] [#]} (24... Bd7 25. Nxd4 cxd4 26. Nxd6 d3)
25. Nexg5 $1 {[%emt 0:06:32] White threatens Qf7+ and mate. White is clearly
winning.} hxg5 {[%emt 0:01:29]} 26. Re8 {[%emt 0:00:05]} Qf6 {[%emt 0:00:00] ..
.Bh7 is the strong threat.} 27. Qh8+ {[%emt 0:00:43]} (27. Nxd4 $142 Rh4 28.
Nxf5+ Qxf5 29. Re7+ Kg8 30. Qe8+ Qf8 31. Qg6+ Kh8 32. Re8 Qxe8 33. Qxe8+ Kh7
34. Qe7+ Kh8 35. Qf8+ Kh7 36. Qe7+ Kh8 37. Qxg5) 27... Kg6 {[%emt 0:00:00]} 28.
Rg8+ {[%emt 0:00:24] Skewer} Kf7 {[%emt 0:00:04]} 29. Rf8+ {[%emt 0:00:05]} Ke7
{[%emt 0:00:03]} 30. Rxf6 {[%emt 0:00:09]} Bxf6 {[%emt 0:00:00]} 31. Qb8 {
[%emt 0:01:02]} Rxc4 {[%emt 0:00:09]} 32. Qxa7+ {[%emt 0:00:00]} Bd7 {[%emt 0:
00:04]} 33. Qxa5 {[%emt 0:00:27]} Rc1+ {[%emt 0:00:47]} 34. Kh2 {[%emt 0:00:04]
} c4 {[%emt 0:01:02]} (34... Rd1 $142 35. a4 c4) 35. Qd2 {[%emt 0:00:37][%csl
Yc1,Yg5]} Rc3 {[%emt 0:00:22]} 36. Nxg5 {[%emt 0:02:50]} Rd3 {[%emt 0:02:06]}
37. Qe1+ {[%emt 0:01:22]} Kf8 {[%emt 0:02:36]} 38. Nh7+ {[%emt 0:00:19]} Kg7 {
[%emt 0:00:02]} 39. Nxf6 {[%emt 0:00:05]} Kxf6 {[%emt 0:00:00]} 40. Qe4 {
[%emt 0:01:36]} Bb5 {[%emt 0:01:00]} 41. a4 {[%emt 0:30:25] Weighted Error
Value: White=0.14 (very precise) /Black=0.38} 1-0

[Event "44th Chess Olympiad Open 2022"]
[Site "Chennai"]
[Date "2022.08.03"]
[Round "6.13"]
[White "Paragua, Mark"]
[Black "Boruchovsky, Avital"]
[Result "1/2-1/2"]
[WhiteElo "2461"]
[BlackElo "2551"]
[Annotator "TA"]
[PlyCount "118"]
[EventDate "2022.??.??"]
[TimeControl "60"]

{[%evp 16,118,0,0,8,14,14,18,10,12,8,11,16,0,22,0,0,-38,-34,-41,-40,-38,-37,
-31,-44,-41,-45,-36,-36,-36,-43,-42,-38,-35,-37,-22,-46,-31,-18,-18,-18,-20,
-20,-45,0,0,0,0,0,0,0,0,0,0,0,0,0,0,0,0,0,0,0,0,0,0,0,0,0,0,0,0,0,0,0,0,0,0,0,
0,0,0,0,0,0,0,0,0,0,0,0,0,0,0,0,0,0,0,0,0,0,0,0,0,0]} 1. e4 {[%emt 0:00:05]} e5
{[%emt 0:00:14]} 2. Nf3 {[%emt 0:00:07]} Nc6 {[%emt 0:00:04]} 3. Nc3 {[%emt 0:
00:00]} Nf6 {[%emt 0:00:39]} 4. d4 {[%emt 0:00:10]} exd4 {[%emt 0:00:18]} 5.
Nxd4 {[%emt 0:00:07]} Bb4 {[%emt 0:00:29]} 6. Nxc6 {[%emt 0:00:08]} bxc6 {
[%emt 0:00:05]} 7. Bd3 {[%emt 0:00:06]} d5 {[%emt 0:00:27]} 8. Bd2 {[%emt 0:00:
00]} O-O {[%emt 0:03:26]} 9. O-O {[%emt 0:00:09][%cal Yc3d5]} Re8 {[%emt 0:00:
00][%cal Yf8e8,Ye8e6,Ye6e4,Ye4b4] [#] C47: Scotch Four Knights and Four
Knights with 4 g3.} 10. Nxd5 $1 {[%emt 0:10:59]} Nxd5 {[%emt 0:00:32]} 11. exd5
{[%emt 0:00:05]} Bxd2 {[%emt 0:00:03]} 12. Qxd2 {[%emt 0:00:08]} cxd5 {[%emt 0:
00:04]} 13. Bb5 {[%emt 0:00:53]} Re6 {[%emt 0:02:55] [#]} 14. Rad1 $146 {
[%emt 0:11:06]} ({Predecessor:} 14. Rfe1 Rb8 15. Bc4 Rxe1+ 16. Rxe1 Be6 17. Bb3
h6 18. Rd1 Qf6 19. c3 c6 20. Qd4 Qxd4 21. cxd4 {0-1 (58) Golubev,M (2461)
-Karjakin,S (2752) Chess.com INT 2020}) 14... Bb7 {[%emt 0:03:59]} 15. Qd4 {
[%emt 0:07:13]} Qe7 {[%emt 0:05:32]} 16. b4 {[%emt 0:22:38]} Re4 {[%emt 0:00:
00]} 17. Qc5 {[%emt 0:00:05]} Qxc5 {[%emt 0:00:05]} 18. bxc5 {[%emt 0:00:02]}
c6 $1 {[%emt 0:00:10]} 19. f3 {[%emt 0:00:09]} Rb4 {[%emt 0:00:41]} 20. Bd3 {
[%emt 0:00:05]} Ra4 {[%emt 0:00:02]} 21. Rb1 {[%emt 0:00:23]} Bc8 {[%emt 0:00:
00]} 22. Rb2 {[%emt 0:08:08] [#] Threatens to win with Rfb1.} g6 {[%emt 0:00:
00]} 23. Rfb1 {[%emt 0:08:45] Hoping for Rb8.} Kg7 {[%emt 0:00:50]} 24. Kf2 {
[%emt 0:06:25]} Ra5 {[%emt 0:01:25]} 25. Rb8 {[%emt 0:02:02]} Rxb8 {[%emt 0:00:
00]} 26. Rxb8 $11 {[%emt 0:00:03] Endgame KRB-KRB} Be6 {[%emt 0:00:00]} 27. Rb7
{[%emt 0:00:17]} d4 {[%emt 0:00:32]} 28. Rb4 {[%emt 0:00:52]} Bxa2 {[%emt 0:00:
51]} 29. Rxd4 {[%emt 0:00:20]} Bd5 {[%emt 0:01:23]} 30. Ke3 {[%emt 0:00:45]
The position is equal.} Be6 {[%emt 0:13:06]} 31. g4 {[%emt 0:00:00]} Kf6 {
[%emt 0:01:36]} 32. Be4 {[%emt 0:02:48]} g5 {[%emt 0:07:09]} 33. Bxc6 {[%emt 0:
01:47]} Rxc5 {[%emt 0:00:12]} 34. Be4 {[%emt 0:00:08]} Rc3+ {[%emt 0:00:00]}
35. Bd3 {[%emt 0:03:29]} Ra3 {[%emt 0:00:40] Prevents Ra4.} 36. Rd8 {[%emt 0:
00:37]} a5 {[%emt 0:03:25]} 37. Kd4 {[%emt 0:01:12]} a4 {[%emt 0:02:18]} 38.
Ra8 {[%emt 0:01:11]} Ra1 {[%emt 0:00:42]} 39. Bc4 {[%emt 0:00:45]} Rd1+ {
[%emt 0:03:41]} 40. Bd3 {[%emt 0:00:33]} Ra1 {[%emt 0:00:05]} 41. Bc4 {[%emt 0:
00:00]} Bxc4 {[%emt 0:36:37]} 42. Kxc4 {[%emt 0:00:08] KR-KR} Rf1 {[%emt 0:00:
00]} 43. Ra6+ {[%emt 0:00:00]} Kg7 {[%emt 0:00:00]} 44. Rxa4 {[%emt 0:00:00]}
Rxf3 {[%emt 0:00:00]} 45. Kd5 {[%emt 0:00:00]} h5 {[%emt 0:00:00]} 46. gxh5 {
[%emt 0:00:00]} Rf5+ {[%emt 0:00:00]} 47. Kd6 {[%emt 0:00:00]} Rf2 {[%emt 0:00:
00][%csl Yc2,Yh2]} 48. c4 {[%emt 0:00:00]} Kf6 {[%emt 0:00:00]} 49. c5 {
[%emt 0:00:00]} Rd2+ {[%emt 0:00:00]} 50. Kc7 {[%emt 0:00:00]} Rxh2 {[%emt 0:
00:00]} 51. c6 {[%emt 0:00:00] Kb7 is the strong threat.} Rxh5 {[%emt 0:00:00]}
52. Kd6 {[%emt 0:00:00]} Kf5 {[%emt 0:00:11]} (52... Rh8 53. c7 $11) 53. Ra8 {
[%emt 0:00:02]} Rh6+ {[%emt 0:01:53]} 54. Kd7 {[%emt 0:00:57] White wants to
mate with c7.} Rh1 {[%emt 0:00:20]} 55. c7 {[%emt 0:01:57]} Rc1 {[%emt 0:00:04]
} 56. c8=Q {[%emt 0:01:30]} Rxc8 {[%emt 0:00:02]} 57. Rxc8 {[%emt 0:00:08]} g4
{[%emt 0:00:09]} 58. Ke7 {[%emt 0:01:31]} g3 {[%emt 0:00:10]} 59. Kxf7 {
[%emt 0:00:25]} Kf4 {[%emt 0:00:04] Weighted Error Value: White=0.01 (flawless)
/Black=0.02 (flawless)} 1/2-1/2

[Event "44th Chess Olympiad Open 2022"]
[Site "Chennai"]
[Date "2022.08.03"]
[Round "6.13"]
[White "Laylo, Darwin"]
[Black "Smirin, Ilia"]
[Result "*"]
[WhiteElo "2432"]
[BlackElo "2601"]
[Annotator "TA"]
[PlyCount "66"]
[EventDate "2022.??.??"]
[TimeControl "60"]

{[%evp 13,66,11,24,-22,-19,-20,-19,-12,0,0,19,25,18,12,20,0,0,0,35,13,0,30,0,
16,2,31,20,3,13,0,0,-83,-89,-164,-166,-165,-179,-158,-74,-75,-16,-96,-84,-70,0,
-19,-15,-34,-18,-21,2,0,0,0,0]} 1. d4 {[%emt 0:00:05]} d6 {[%emt 0:00:07]} 2.
c4 {[%emt 0:00:13]} e5 {[%emt 0:00:10]} 3. Nf3 {[%emt 0:01:23]} e4 {[%emt 0:00:
00]} 4. Ng5 {[%emt 0:01:14]} f5 {[%emt 0:00:15]} 5. Nc3 {[%emt 0:00:19]} Be7 {
[%emt 0:00:23]} 6. Nh3 {[%emt 0:00:28]} Nf6 {[%emt 0:00:43][%cal Yg8f6,Yf6d7,
Yd7e5]} 7. g3 {[%emt 0:02:33]} c6 {[%emt 0:02:07]} 8. d5 {[%emt 0:00:00] A21:
English Opening: 1...e5 2 Nc3.} (8. Nf4 $142) 8... Nbd7 $11 {[%emt 0:00:00]} 9.
Bg2 {[%emt 0:01:01]} Nb6 {[%emt 0:01:13]} 10. Qb3 {[%emt 0:03:41]} Nfd7 {
[%emt 0:03:45]} 11. O-O {[%emt 0:05:53]} Ne5 {[%emt 0:04:27]} 12. f3 $1 {
[%emt 0:05:32] [#]} Nbxc4 $146 {[%emt 0:10:20]} ({Predecessor:} 12... exf3 13.
exf3 Nexc4 14. Re1 O-O 15. Bf1 Na5 16. Qb4 Nxd5 17. Nxd5 cxd5 18. Nf4 Nc6 {
0-1 (54) Machlik,E (2110)-Lie,K (2539) Norway 2019}) 13. fxe4 {[%emt 0:07:02]}
O-O {[%emt 0:00:44]} 14. Bf4 {[%emt 0:09:34] aiming for dxc6.} Kh8 {[%emt 0:00:
00]} 15. exf5 {[%emt 0:02:45]} Bxf5 {[%emt 0:02:12]} 16. Qxb7 {[%emt 0:17:27]}
Na5 {[%emt 0:17:10][%cal Yc4a5,Ya5c6,Yc6d4,Yd4e2]} 17. Qb4 {[%emt 0:00:00]} Rb8
{[%emt 0:05:21] Deflection} 18. Qa4 {[%emt 0:02:45]} Rxb2 {[%emt 0:02:02]} 19.
dxc6 {[%emt 0:03:32][%cal Yc6c7] c7! is the strong threat.} Bc2 {[%emt 0:10:49]
Deflection} 20. Qd4 {[%emt 0:02:06]} Naxc6 {[%emt 0:01:22]} 21. Qd2 {[%emt 0:
02:12]} Bf6 $36 {[%emt 0:03:45][%cal Yc6d4] Black has good play.} 22. Nd5 {
[%emt 0:02:31]} (22. Bg5 $11) 22... Bf5 $17 {[%emt 0:04:36]} 23. Qd1 {[%emt 0:
03:20] [#]} (23. Qxb2 $17 Nf3+ 24. Rxf3 Bxb2 25. Raf1 Bxh3 26. Bxh3) 23... Nd4
$1 $19 {[%emt 0:01:50]} 24. Nxf6 {[%emt 0:07:08]} ({Don't blunder} 24. Qxd4 $2
Nf3+ $1 25. Bxf3 Bxd4+ $19) 24... Nxe2+ {[%emt 0:01:18]} 25. Kh1 {[%emt 0:00:
01] Hoping for Bxe5.} Bxh3 {[%emt 0:06:51]} (25... Qxf6 26. Bxe5 Qxe5 27. g4
$15) (25... Nc3 $142 26. Qh5 Rxg2 27. Bxe5 {[#]} Qa8 $1 28. Rxf5 Rxg3+ 29. Rf3
Qxf3+ 30. Qxf3 Rxf3 31. Nxh7 Rf1+ 32. Rxf1 Rxf1+ 33. Kg2 dxe5 $1 34. Kxf1 Kxh7)
26. Bxh3 $17 {[%emt 0:00:53] And now Nd5 would win.} Rxf6 {[%emt 0:00:14]} ({
Of course not} 26... gxf6 27. Bd2 Nc4 28. Qxe2 $11) ({Black should try} 26...
Nxf4 $17 27. Rxf4 (27. gxf4 Rxf6 28. Qd5 Ng6 $17) 27... Rxf6) 27. Bg2 {[%emt 0:
01:55]} (27. Bd2 $1 $11 {remains equal.} Rxf1+ 28. Bxf1) 27... Nxf4 {[%emt 0:
01:03]} 28. Rxf4 {[%emt 0:01:31]} Re6 {[%emt 0:05:13]} (28... Rxf4 $15 29. gxf4
Ng6) 29. Qd5 {[%emt 0:00:50]} Re8 {[%emt 0:00:04]} 30. Rd1 {[%emt 0:00:35]} Rb6
{[%emt 0:00:28]} 31. a4 {[%emt 0:01:56] The position is equal.} g6 {[%emt 0:00:
00]} 32. Qd4 {[%emt 0:03:01]} a5 {[%emt 0:00:41]} 33. Qc3 {[%emt 0:01:20]} Rb8
{[%emt 0:04:29] Weighted Error Value: White=0.20 (precise) /Black=0.12 (very
precise)} *

[Event "44th Chess Olympiad Open 2022"]
[Site "Chennai"]
[Date "2022.08.03"]
[Round "6.14"]
[White "Tari, Aryan"]
[Black "Kuybokarov, Temur"]
[Result "0-1"]
[WhiteElo "2672"]
[BlackElo "2583"]
[Annotator "TA"]
[PlyCount "78"]
[EventDate "2022.??.??"]
[TimeControl "60"]

{[%evp 11,78,17,39,13,7,12,41,1,35,0,0,0,0,10,0,12,20,0,19,0,22,-22,0,-2,0,0,
-7,-6,0,-24,-12,-4,-9,-16,-26,-21,-43,-149,-5,-5,-5,-5,-5,-5,-5,-5,-5,-5,-5,-5,
-5,-7,0,0,0,-29961,-29962,-29957,-575,-29957,-12850,-12607,-9375,-29975,-29972,
-29982,-29983,-29987,-29986]} 1. Nf3 {[%emt 0:00:28]} d5 {[%emt 0:00:11]} 2. d4
{[%emt 0:00:35]} Nf6 {[%emt 0:00:09]} 3. c4 {[%emt 0:00:45]} dxc4 {[%emt 0:00:
00]} 4. e3 {[%emt 0:01:08]} e6 {[%emt 0:00:10]} 5. Bxc4 {[%emt 0:00:07]} c5 {
[%emt 0:00:07]} 6. O-O {[%emt 0:01:29]} Nc6 {[%emt 0:00:10]} 7. Nc3 {[%emt 0:
00:00] D26: Queen's Gambit Accepted: 4 e3 e6 5 Bxc5 c5 sidelines.} a6 {[%emt 0:
00:00]} 8. d5 {[%emt 0:00:08]} Nxd5 $5 {[%emt 0:00:10] Leaves trodden paths.}
9. Nxd5 {[%emt 0:00:44] Hoping for Nc3. White is slightly better.} Na5 {
[%emt 0:00:06] [#]} 10. b3 $1 {[%emt 0:05:14][%cal Yb2b3,Yb3c4,Yc4d5]} Nxc4 {
[%emt 0:00:14]} 11. bxc4 {[%emt 0:04:16] Nc3 is the strong threat.} exd5 {
[%emt 0:00:05]} 12. cxd5 {[%emt 0:04:36]} Bd6 {[%emt 0:00:06]} 13. e4 {[%emt 0:
02:43] Black should prevent e5.} f6 {[%emt 0:00:04] Inhibits e5.} 14. a4 {
[%emt 0:04:29]} O-O {[%emt 0:01:04] [#]} 15. h3 $146 {[%emt 0:05:46]} ({
Predecessor:} 15. a5 b5 16. axb6 Qxb6 17. Qc2 Qc7 18. h3 f5 19. e5 Bxe5 20.
Nxe5 Qxe5 21. Ra5 {1-0 (67) Giri,A (2764)-Wang,H (2763) Chess.com INT 2020})
15... b6 {[%emt 0:20:02]} 16. Bb2 {[%emt 0:03:00]} Bd7 {[%emt 0:04:33]} 17. Re1
{[%emt 0:07:32]} Qc7 {[%emt 0:05:36]} 18. e5 {[%emt 0:06:42]} fxe5 {[%emt 0:00:
00]} 19. Nxe5 {[%emt 0:02:10]} Rae8 {[%emt 0:05:44][%cal Re8e5]} 20. Qb3 {
[%emt 0:12:03]} b5 {[%emt 0:15:41]} (20... Rxe5 $2 21. Bxe5 h6 22. Qc4 $1 $18)
21. axb5 {[%emt 0:01:27]} axb5 {[%emt 0:00:40][%cal Ya6b5,Yb5b4,Yb4b3,Yb3b2]
And now ...c4 would win.} (21... Rxe5 $2 22. Bxe5 Bxb5 23. Qg3 Bxe5 24. Rxe5
$18) 22. Nxd7 {[%emt 0:07:30]} Rxe1+ {[%emt 0:05:19]} 23. Rxe1 {[%emt 0:00:04]
[%cal Ye1e7] Threatening mate with Re7!} Qxd7 {[%emt 0:03:41]} 24. Re6 {
[%emt 0:03:25]} ({White should try} 24. Be5 $1 $15) 24... c4 {[%emt 0:00:00]} (
24... Rf5 $17 {aiming for ...c4.} 25. Ba3 Bf8) 25. Qe3 $1 $11 {[%emt 0:03:15]}
b4 $40 {[%emt 0:01:29] Black has some attack.} 26. Be5 {[%emt 0:03:43]
Prevents Bf4.} Bxe5 {[%emt 0:02:08]} 27. Qxe5 {[%emt 0:00:00] Endgame KQR-KQR}
Qf7 {[%emt 0:04:58]} 28. Qd4 {[%emt 0:07:43]} b3 {[%emt 0:02:35] Threatens to
win with ...Qf4.} 29. Qxc4 {[%emt 0:04:02]} b2 {[%emt 0:09:04]} 30. Qb4 $1 {
[%emt 0:00:55]} ({Wrong is} 30. Qf1 $2 Rc8 31. Rb6 Rc1 32. Rb8+ Qf8 $3 33. Rxb2
(33. Rxf8+ Kxf8 34. g3 Rxf1+ 35. Kxf1 b1=Q+ $19) 33... Rxf1+ 34. Kxf1 Qf4 $19)
30... Qxf2+ {[%emt 0:00:48]} 31. Kh2 {[%emt 0:00:01]} h5 {[%emt 0:02:30]} 32.
Rb6 {[%emt 0:03:33]} h4 {[%emt 0:00:51] ( -> ...Re8)} (32... Re8 $5 33. Re6 (
33. d6 $2 Re3 $19) 33... Rxe6 34. dxe6 Qe2 35. Qb8+ Kh7 $11) 33. Qd6 $2 {
[%emt 0:01:23] [#]} (33. Qxb2 $11 Qg3+ 34. Kg1) 33... Re8 $1 {[%emt 0:01:20]}
34. Rb4 {[%emt 0:01:30]} Re2 {[%emt 0:00:00]} (34... Qd2 $142 35. Rb7 Qc1 36.
Qb4 Qg5 37. Qg4 Qe5+ 38. Kg1 Ra8 39. Kf2 Qf6+ 40. Ke1 Ra1+ 41. Ke2 Qa6+ 42. Kd2
Qxb7 43. Qe6+ Qf7 44. Qc8+ Qf8 45. Qe6+ Kh8 46. Qb6 Qf4+ 47. Kc3 b1=Q 48. Qxb1
Rxb1 49. Kc2 Re1 50. g4 Qe3 51. d6 Re2+ 52. Kd1 Qd2#) 35. Qd8+ {[%emt 0:00:53]
[#]} Qf8 $1 {[%emt 0:00:05]} 36. Qb6 {[%emt 0:01:09]} Qf6 {[%emt 0:02:40]} 37.
Qb8+ {[%emt 0:00:59]} Kh7 {[%emt 0:00:06] Black mates.} 38. Rg4 {[%emt 0:01:37]
} Re1 {[%emt 0:00:10]} ({And not} 38... Qe5+ 39. Qxe5 Rxe5 40. Rxh4+ Kg6 41.
Rb4 $14) 39. Rb4 {[%emt 0:00:00]} Qf2 {[%emt 0:00:08] Weighted Error Value:
White=0.67/Black=0.24 (precise)} 0-1

[Event "44th Chess Olympiad Open 2022"]
[Site "Chennai"]
[Date "2022.08.03"]
[Round "6.14"]
[White "Smirnov, Anton"]
[Black "Carlsen, Magnus"]
[Result "0-1"]
[WhiteElo "2600"]
[BlackElo "2864"]
[Annotator "TA"]
[PlyCount "80"]
[EventDate "2022.??.??"]
[TimeControl "60"]

{[%evp 12,80,35,38,35,14,24,22,29,37,37,27,30,22,13,15,27,0,0,0,47,0,0,-55,-29,
-94,-22,-47,-27,-8,0,-28,-11,-35,0,0,0,0,0,0,0,-268,-72,-76,-77,-91,-66,-211,
-148,-146,-119,-297,-255,-321,-312,-316,-254,-228,-259,-314,-315,-354,-343,
-347,-321,-350,-262,-262,-258,-245,-247]} 1. e4 {[%emt 0:00:36]} Nc6 {[%emt 0:
00:00]} 2. Nf3 {[%emt 0:00:34]} d6 {[%emt 0:00:20]} 3. d4 {[%emt 0:02:05]} Nf6
{[%emt 0:03:51]} 4. Nc3 {[%emt 0:04:57]} g6 {[%emt 0:00:45]} 5. h3 {[%emt 0:00:
00]} Bg7 {[%emt 0:00:20]} 6. Be3 {[%emt 0:00:43]} O-O {[%emt 0:01:16]} 7. Qd2 {
[%emt 0:03:31]} a6 {[%emt 0:01:22] B08: Pirc Defence: Classical System.} 8. Bd3
{[%emt 0:11:28]} e5 {[%emt 0:02:24]} 9. dxe5 {[%emt 0:03:18]} Nxe5 {[%emt 0:00:
00] The position is equal.} 10. Nxe5 {[%emt 0:00:08]} dxe5 {[%emt 0:00:12]} 11.
O-O-O {[%emt 0:03:14]} b5 {[%emt 0:05:03] [#]} 12. g4 $146 {[%emt 0:04:31]} ({
Predecessor:} 12. Bc5 Be6 13. Qe3 Nd7 14. Bxf8 Qxf8 15. g4 Nc5 16. Kb1 Rb8 17.
Ne2 Na4 18. Qa7 {½-½ (57) Smeets,J (2617)-Loxine,J (2411) Germany 2016})
12... c6 {[%emt 0:14:43]} 13. f3 {[%emt 0:03:49]} Be6 {[%emt 0:03:55]} 14. h4 {
[%emt 0:03:22]} Qa5 {[%emt 0:02:44]} 15. a3 {[%emt 0:09:55]} Rfb8 {[%emt 0:00:
00]} (15... h5 $11 {might be stronger.}) 16. Bc5 {[%emt 0:03:34]} (16. h5 $1
$14 {feels stronger.}) 16... h5 $11 {[%emt 0:02:26]} 17. Bd6 {[%emt 0:05:58]} (
{White should play} 17. Kb1 $11) 17... Rb7 {[%emt 0:09:08]} 18. Kb1 {[%emt 0:
00:00]} (18. Bxe5 b4 19. Qf4 (19. Bxf6 $2 Bxf6 20. Nd5 cxd5 $19) 19... bxc3 20.
Bxc3 Qc7 21. Qxc7 Rxc7 $17) (18. Rdg1 $11 {keeps the balance.}) 18... Rd8 {
[%emt 0:06:37]} (18... hxg4 $17 19. fxg4 Bxg4) 19. Bb4 {[%emt 0:01:13]} Qc7 {
[%emt 0:05:56]} 20. Ne2 {[%emt 0:00:09]} Rd7 {[%emt 0:05:37]} 21. Bc5 {[%emt 0:
00:00]} hxg4 {[%emt 0:05:17]} 22. Ng3 {[%emt 0:00:10]} gxf3 {[%emt 0:00:41]
[%cal Yb5b4] White must now prevent ...b4!} (22... b4 $5 23. axb4 a5 $11) 23.
h5 {[%emt 0:00:10] h6 is the strong threat.} Qd8 {[%emt 0:00:34]} 24. hxg6 {
[%emt 0:07:54]} fxg6 {[%emt 0:00:02]} 25. Qg5 {[%emt 0:00:41][%csl Ye5,Yg6]}
Kf7 {[%emt 0:01:54]} 26. Nf5 $2 {[%emt 0:02:49] [#]} Nxe4 $1 {[%emt 0:01:47]}
27. Nh6+ $17 {[%emt 0:00:52]} Bxh6 {[%emt 0:00:07]} 28. Qxh6 {[%emt 0:00:32]
Hoping for Qh7+.} Bf5 {[%emt 0:00:36] And now ...Nf6 would win.} (28... Nxc5
29. Bxg6+ Kf6 30. Be8+ (30. Rdf1 $2 Ke7 $19) 30... Kf5 31. Rh5+ Ke4 32. Bg6+)
29. Ka2 {[%emt 0:09:54]} Qg8 {[%emt 0:03:14]} (29... Nxc5 30. Bxf5 Qf6 31. Qh7+
Kf8 32. Bxd7 Rxd7 33. Rxd7 Qe6+ 34. Rd5 Qxd5+ 35. b3 $14) 30. Bxe4 {[%emt 0:00:
00]} Bxe4 {[%emt 0:00:33]} 31. Rde1 $2 {[%emt 0:00:00] [#]} (31. Kb1 $17 {
might work better.}) 31... Kf6+ $1 $19 {[%emt 0:00:45]} (31... Bxc2 32. Qh2 Bf5
33. Qxe5 $11) 32. b3 {[%emt 0:02:32] [#] aiming for Qh4+.} Rh7 $1 {[%emt 0:00:
13]} ({Worse is} 32... Bxc2 33. Qh4+ g5 34. Qh6+ Bg6 35. Rxe5 Rd2+ 36. Ka1 $17)
33. Qe3 {[%emt 0:00:39]} Rxh1 {[%emt 0:00:16]} 34. Rxh1 {[%emt 0:00:03]} Qd5 {
[%emt 0:00:57]} ({Not} 34... Bxc2 35. Qxf3+ Kg7 36. Bd6 Qxb3+ 37. Qxb3 Bxb3+
38. Kxb3 $14) 35. Kb2 {[%emt 0:00:56]} Rd7 {[%emt 0:00:00]} ({Wrong is} 35...
Ke6 $2 36. Rh4 Kf5 37. Qg1 $19) 36. Rh8 {[%emt 0:00:00]} Bf5 {[%emt 0:02:20]}
37. Rf8+ {[%emt 0:00:06]} Rf7 {[%emt 0:03:35]} 38. Re8 {[%emt 0:00:29]} Qe4 {
[%emt 0:02:11]} 39. Qd2 {[%emt 0:04:09] Strongly threatening Qd8+.} Kg7 {
[%emt 0:01:11][%cal Ye4c2]} 40. Bf2 {[%emt 0:02:36]} Qe2 {[%emt 0:00:55]
Weighted Error Value: White=0.30/Black=0.18 (very precise)} 0-1